Department Family,Entity,Date,Expense Type,Expense Area,Supplier,Transaction Number,AP Amount,VAT Registration Number,Purchase Invoice Number,
Department of Health,Bridgewater Community Healthcare NHS Foundation Trust,3/31/2018,Computer Software/License,Computing,PHOENIX PARTNERSHIP (LEEDS) LTD,24361853,"36,924.19",721671841,7935,
Department of Health,Bridgewater Community Healthcare NHS Foundation Trust,3/31/2018,External Consultancy Fees,Offender Health - Wymott,IC CUBED (UK) LTD,25881057,"31,700.00",GB167903874,BRIDGE028,
Department of Health,Bridgewater Community Healthcare NHS Foundation Trust,3/31/2018,Hcare Srv Rec NHS Trust,Midwifery - Halton,ST HELENS & KNOWSLEY HOSPITALS NHS TRUST,25911643,"55,500.00",654943996,16771234,
Department of Health,Bridgewater Community Healthcare NHS Foundation Trust,3/31/2018,Hlthcre-Foundation Trsts,Midwifery - Halton,ST HELENS & KNOWSLEY HOSPITALS NHS TRUST,25911657,"55,500.00",654943996,16772378,
Department of Health,Bridgewater Community Healthcare NHS Foundation Trust,3/31/2018,Hlthcre-Foundation Trsts,Midwifery - Halton,ST HELENS & KNOWSLEY HOSPITALS NHS TRUST,25911694,"55,500.00",654943996,16772929,
Department of Health,Bridgewater Community Healthcare NHS Foundation Trust,3/31/2018,Audit Fees: Internal,Finance,ROYAL LIVERPOOL&BROADGREEN UNIVERSITY HOSPITALS NHS TRUST (THE),25922926,"32,830.00",654966000,8610074643,
Department of Health,Bridgewater Community Healthcare NHS Foundation Trust,3/31/2018,Services Received - NHSTs,IT Systems and Management,ST HELENS & KNOWSLEY HOSPITALS NHS TRUST,25949343,"62,222.19",654943996,16771596,
Department of Health,Bridgewater Community Healthcare NHS Foundation Trust,3/31/2018,Services Received - NHSTs,IT Systems and Management,ST HELENS & KNOWSLEY HOSPITALS NHS TRUST,25949348,"62,222.19",654943996,16772357,
Department of Health,Bridgewater Community Healthcare NHS Foundation Trust,3/31/2018,Services Received - NHSTs,IT Systems and Management,ST HELENS & KNOWSLEY HOSPITALS NHS TRUST,25949367,"62,222.19",654943996,16772973,
Department of Health,Bridgewater Community Healthcare NHS Foundation Trust,3/31/2018,Drugs,Medicines Management,NHS BUSINESS SERVICES AUTHORITY,25975782,"86,117.46",654434729,1000055054,
Department of Health,Bridgewater Community Healthcare NHS Foundation Trust,3/31/2018,Continence Products,Great Lever HC School Health - Bolton,ROYAL BOLTON HOSPITAL NHS FOUNDATION TRUST,25983695,"28,824.20",654913421,0001040501,
Department of Health,Bridgewater Community Healthcare NHS Foundation Trust,3/31/2018,Med & Surg Equip Disp,Continence Adult - Warrington,ESSITY UK LTD,25983771,"42,719.90",GB 600 4331 06,6401360426,
Department of Health,Bridgewater Community Healthcare NHS Foundation Trust,3/31/2018,Hlthcre-Foundation Trsts,Midwifery - Halton,WARRINGTON & HALTON HOSPITALS NHS FOUNDATION TRUST,25983777,"32,891.00",654404741,15367413,
Department of Health,Bridgewater Community Healthcare NHS Foundation Trust,3/31/2018,Continence Products,Great Lever HC School Health - Bolton,ROYAL BOLTON HOSPITAL NHS FOUNDATION TRUST,26014764,"31,531.00",654913421,0001033680,
Department of Health,Bridgewater Community Healthcare NHS Foundation Trust,3/31/2018,Lease Rents,Newton Community Hospital,COMMUNITY HEALTH PARTNERSHIPS LTD,26014775,"99,769.51",GB782562113,0060037624,
Department of Health,Bridgewater Community Healthcare NHS Foundation Trust,3/31/2018,Lease Rents,Newton Community Hospital,COMMUNITY HEALTH PARTNERSHIPS LTD,26014780,"99,769.51",GB782562113,0060037623,
Department of Health,Bridgewater Community Healthcare NHS Foundation Trust,3/31/2018,Lease Rents,0-19 Services - Oldham,COMMUNITY HEALTH PARTNERSHIPS LTD,26014783,"50,657.97",GB782562113,0060059055,
Department of Health,Bridgewater Community Healthcare NHS Foundation Trust,3/31/2018,Lease Rents,Chandler House,COMMUNITY HEALTH PARTNERSHIPS LTD,26014785,"45,793.93",GB782562113,0060059105,
Department of Health,Bridgewater Community Healthcare NHS Foundation Trust,3/31/2018,Lease Rents,Claire House,COMMUNITY HEALTH PARTNERSHIPS LTD,26014785,"31,193.44",GB782562113,0060059105,
Department of Health,Bridgewater Community Healthcare NHS Foundation Trust,3/31/2018,Lease Rents,Leigh Health Centre,COMMUNITY HEALTH PARTNERSHIPS LTD,26014785,"86,248.67",GB782562113,0060059105,
Department of Health,Bridgewater Community Healthcare NHS Foundation Trust,3/31/2018,Lease Rents,Pemberton,COMMUNITY HEALTH PARTNERSHIPS LTD,26014785,"30,484.44",GB782562113,0060059105,
Department of Health,Bridgewater Community Healthcare NHS Foundation Trust,3/31/2018,Lease Rents,Platt Bridge,COMMUNITY HEALTH PARTNERSHIPS LTD,26014785,"64,090.32",GB782562113,0060059105,
Department of Health,Bridgewater Community Healthcare NHS Foundation Trust,3/31/2018,Lease Rents,Wigan Health Centre - Boston House,COMMUNITY HEALTH PARTNERSHIPS LTD,26014785,"64,007.66",GB782562113,0060059105,
Department of Health,Bridgewater Community Healthcare NHS Foundation Trust,3/31/2018,Lease Rents,Bath Street,COMMUNITY HEALTH PARTNERSHIPS LTD,26014789,"56,150.20",GB782562113,0060059102,
Department of Health,Bridgewater Community Healthcare NHS Foundation Trust,3/31/2018,Lease Rents,Child Development Centre Orford,COMMUNITY HEALTH PARTNERSHIPS LTD,26014789,"44,634.96",GB782562113,0060059102,
Department of Health,Bridgewater Community Healthcare NHS Foundation Trust,3/31/2018,Lease Rents,Widnes HCRC,COMMUNITY HEALTH PARTNERSHIPS LTD,26014792,"62,832.88",GB782562113,0060058994,
Department of Health,Bridgewater Community Healthcare NHS Foundation Trust,3/31/2018,SrvcsRecd-FoundationTrust,Offender Health - Risley,GREATER MANCHESTER WEST MENTAL HEALTH NHS FOUNDATION TRUST,26014797,"44,339.94",654929594,0000027325,
Department of Health,Bridgewater Community Healthcare NHS Foundation Trust,3/31/2018,SrvcsRecd-FoundationTrust,Offender Health HM Prison Healthcare (Hindley),GREATER MANCHESTER WEST MENTAL HEALTH NHS FOUNDATION TRUST,26014797,"77,694.51",654929594,0000027325,
Department of Health,Bridgewater Community Healthcare NHS Foundation Trust,3/31/2018,Lease Rents,Chandler House,COMMUNITY HEALTH PARTNERSHIPS LTD,26014805,"45,458.19",GB782562113,0060061338,
Department of Health,Bridgewater Community Healthcare NHS Foundation Trust,3/31/2018,Lease Rents,Claire House,COMMUNITY HEALTH PARTNERSHIPS LTD,26014805,"31,193.44",GB782562113,0060061338,
Department of Health,Bridgewater Community Healthcare NHS Foundation Trust,3/31/2018,Lease Rents,Leigh Health Centre,COMMUNITY HEALTH PARTNERSHIPS LTD,26014805,"86,248.67",GB782562113,0060061338,
Department of Health,Bridgewater Community Healthcare NHS Foundation Trust,3/31/2018,Lease Rents,Pemberton,COMMUNITY HEALTH PARTNERSHIPS LTD,26014805,"30,484.44",GB782562113,0060061338,
Department of Health,Bridgewater Community Healthcare NHS Foundation Trust,3/31/2018,Lease Rents,Platt Bridge,COMMUNITY HEALTH PARTNERSHIPS LTD,26014805,"64,090.32",GB782562113,0060061338,
Department of Health,Bridgewater Community Healthcare NHS Foundation Trust,3/31/2018,Lease Rents,Wigan Health Centre - Boston House,COMMUNITY HEALTH PARTNERSHIPS LTD,26014805,"64,007.66",GB782562113,0060061338,
Department of Health,Bridgewater Community Healthcare NHS Foundation Trust,3/31/2018,Lease Rents,Bath Street,COMMUNITY HEALTH PARTNERSHIPS LTD,26014812,"56,150.20",GB782562113,0060061337,
Department of Health,Bridgewater Community Healthcare NHS Foundation Trust,3/31/2018,Lease Rents,Child Development Centre Orford,COMMUNITY HEALTH PARTNERSHIPS LTD,26014812,"44,634.96",GB782562113,0060061337,
Department of Health,Bridgewater Community Healthcare NHS Foundation Trust,3/31/2018,Lease Rents,0-19 Services - Oldham,COMMUNITY HEALTH PARTNERSHIPS LTD,26014813,"50,795.08",GB782562113,0060061283,
Department of Health,Bridgewater Community Healthcare NHS Foundation Trust,3/31/2018,Lease Rents,Castlefields,COMMUNITY HEALTH PARTNERSHIPS LTD,26014819,"66,041.76",GB782562113,0060061277,
Department of Health,Bridgewater Community Healthcare NHS Foundation Trust,3/31/2018,Rent,Dewar Court,NHS PROPERTY SERVICES LTD,26055491,"98,103.90",,48417496,
Department of Health,Bridgewater Community Healthcare NHS Foundation Trust,3/31/2018,Hcare Srv Rec NHS Trust,Midwifery - Halton,ST HELENS & KNOWSLEY HOSPITALS NHS TRUST,26055599,"55,500.00",654943996,16769685,
Department of Health,Bridgewater Community Healthcare NHS Foundation Trust,3/31/2018,Drugs,Medicines Management,NHS BUSINESS SERVICES AUTHORITY,26055606,"84,126.00",654434729,1000054725,
Department of Health,Bridgewater Community Healthcare NHS Foundation Trust,3/31/2018,Service Charge,Warrington Wolves,WARRINGTON FC LTD,26055607,"37,620.00",152685258,20987,
Department of Health,Bridgewater Community Healthcare NHS Foundation Trust,3/31/2018,Drugs,Offender Health - Wymott,LLOYDS RETAIL CHEMISTS LTD,26055613,"36,971.61",,69398,
Department of Health,Bridgewater Community Healthcare NHS Foundation Trust,3/31/2018,External Consultancy Fees,Offender Health - Wymott,IC CUBED (UK) LTD,26056286,"25,400.00",GB167903874,BRIDGE029,
Department of Health,Bridgewater Community Healthcare NHS Foundation Trust,3/31/2018,Drugs,Medicines Management,NHS BUSINESS SERVICES AUTHORITY,26067061,"81,964.51",654434729,1000054398,
Department of Health,Bridgewater Community Healthcare NHS Foundation Trust,3/31/2018,Drugs,Offender Health - Wymott,LLOYDS RETAIL CHEMISTS LTD,26092788,"52,926.79",,66144,
Department of Health,Bridgewater Community Healthcare NHS Foundation Trust,3/31/2018,SrvcsRecd-FoundationTrust,ICS,WRIGHTINGTON WIGAN & LEIGH NHS FOUNDATION TRUST,26092810,"226,692.93",654951509,55572038,
Department of Health,Bridgewater Community Healthcare NHS Foundation Trust,3/31/2018,SrvcsRecd-FoundationTrust,ICS,WRIGHTINGTON WIGAN & LEIGH NHS FOUNDATION TRUST,26092814,"226,692.93",654951509,55572729,
Department of Health,Bridgewater Community Healthcare NHS Foundation Trust,3/31/2018,SrvcsRecd-FoundationTrust,ICS,WRIGHTINGTON WIGAN & LEIGH NHS FOUNDATION TRUST,26092818,"226,692.93",654951509,55573050,
Department of Health,Bridgewater Community Healthcare NHS Foundation Trust,3/31/2018,SrvcsRecd-FoundationTrust,ICS,WRIGHTINGTON WIGAN & LEIGH NHS FOUNDATION TRUST,26092827,"226,692.93",654951509,55574024,
Department of Health,Bridgewater Community Healthcare NHS Foundation Trust,3/31/2018,SrvcsRecd-FoundationTrust,ICS,WRIGHTINGTON WIGAN & LEIGH NHS FOUNDATION TRUST,26092839,"226,692.93",654951509,55575050,
Department of Health,Bridgewater Community Healthcare NHS Foundation Trust,3/31/2018,Computer Software/License,Computing,TRUSTMARQUE SOLUTIONS LTD,26143074,"47,301.19",727348615,XMLSINV2270380,
Department of Health,Bridgewater Community Healthcare NHS Foundation Trust,3/31/2018,Computer Maintenance,Computing,SPECIALIST COMPUTER CENTRES PLC,26191509,"38,277.84",313651680,OPM421149,
